Cogmind - Beta 14 @@@ ROGUE MODE // 2024.12.10 @ 17:36:38 Player: Decinym Result: Destroyed by Triborg with Siege Cannon Performance ------------- Evolutions (2) 1000 Regions Visited (10) 2000 Robots Destroyed (145) 725 Value Destroyed (4162) 4162 Prototype IDs (43) 860 Alien Tech Used (0) 0 Bonus (207) 207 TOTAL SCORE: 8954 Bonus ------- High Alert Combat Kills 423 Follower Combat Kills 216 Aligned with FarCom 300 Friendly Fire -732 Cogmind --------- Core Integrity 0/550 Matter 245/300 Energy 12/100 System Corruption 0% Temperature Warm (111) Movement Treading (320) Ox2 Location -8/Scraptown Parts ------- > --- POWER (1) -------- (None) > --- PROPULSION (4) --- Light Treads Light Treads > --- UTILITY (4) ------ Huge Storage Unit Hardened Medium Armor Plating > --- WEAPON (2) ------- Heavy EM Shotgun Ion Burst Cannon > --- INVENTORY (25) --- Light Treads High-capacity Storage Unit High-capacity Matter Pod (200) Structural Scanner Experimental Sensor Array Experimental Targeting Computer Experimental Core Analyzer Hardened Medium Armor Plating High-powered Tractor Beam AS-neutralizer No. 17b Advanced Beam Rifle Advanced Beam Cannon Enhanced Autogun 8R-AWN's Boregun Improved Grenade Launcher Missile Launcher CPS Tube (2) CPS Tube (1) Katana Peak State ------------ > --- POWER ------------ Reinforced Fission Core > --- PROPULSION ------- Light Treads Light Treads Light Treads Light Treads > --- UTILITY ---------- Experimental Heat Sink Huge Storage Unit Experimental Sensor Array Improved Utility Shielding > --- WEAPON ----------- Advanced Beam Rifle Advanced Beam Cannon > --- INVENTORY -------- Heavy Deuterium Engine Light Treads Light Treads Light Treads Light Treads High-capacity Storage Unit High-capacity Matter Pod Structural Scanner Experimental Targeting Computer Experimental Core Analyzer Hardened Medium Armor Plating Hardened Medium Armor Plating Hardened Medium Armor Plating AS-neutralizer No. 17b Heavy EM Shotgun Heavy EM Shotgun Heavy EM Shotgun Heavy EM Shotgun Ion Burst Cannon Enhanced Autogun 8R-AWN's Boregun Improved Grenade Launcher Missile Launcher Missile Launcher Katana [Rating: 46] Favorites ----------- Power Reinforced Fission Core Engine Heavy Ion Engine Power Core Reinforced Fission Core Propulsion Light Treads Treads Light Treads Leg Aluminum Leg Utility Huge Storage Unit Device Experimental Heat Sink Storage Huge Storage Unit Processor Advanced Targeting Computer Protection Core Shielding Weapon Advanced Beam Cannon Energy Gun Advanced Beam Rifle Energy Cannon Advanced Beam Cannon Ballistic Gun 8R-AWN's Boregun Launcher Improved Grenade Launcher Special Weapon CPS Tube Slashing Weapon Longsword +1 Special Melee Weapon Datajack Build | -11 -10 -10 -9 -9 -9 -8 -8 -8 -8 -8 ------- Run | Yrd Mat Min Mat Min Exi Min Mat Sto Rec Scr Slots Evolved 4 | . . . 2 . . . 2 . . . Power . | . . . . . . . . . . . Propulsion 2 | . . . 1 . . . 1 . . . Utility 2 | . . . 1 . . . 1 . . . Weapon . | . . . . . . . . . . . Parts Attached 134 | . 3 . 14 8 15 6 17 51 9 11 Power 10 | . 1 . 2 1 1 . 1 2 1 1 Engine 7 | . 1 . 2 1 1 . . 1 . 1 Core 3 | . . . . . . . 1 1 1 . Reactor . | . . . . . . . . . . . Propulsion 42 | . . . 3 3 4 3 7 15 5 2 Treads 42 | . . . 3 3 4 3 7 15 5 2 Leg . | . . . . . . . . . . . Wheel . | . . . . . . . . . . . Hover . | . . . . . . . . . . . Flight . | . . . . . . . . . . . Utility 22 | . 2 . 3 . 1 1 3 8 1 3 Device 4 | . . . . . . 1 1 2 . . Storage 3 | . 1 . 1 . 1 . . . . . Processor 3 | . . . 2 . . . 1 . . . Hackware . | . . . . . . . . . . . Protection 12 | . 1 . . . . . 1 6 1 3 Artifact . | . . . . . . . . . . . Weapon 60 | . . . 6 4 9 2 6 26 2 5 Energy Gun 14 | . . . 4 1 . . . 6 . 3 Energy Cannon 18 | . . . . 2 1 . 4 9 1 1 Ballistic Gun 11 | . . . . . 5 1 . 5 . . Ballistic Cannon . | . . . . . . . . . . . Launcher 11 | . . . 2 1 1 1 2 3 1 . Special Weapon 1 | . . . . . . . . . . 1 Impact Weapon . | . . . . . . . . . . . Slashing Weapon 4 | . . . . . 1 . . 3 . . Piercing Weapon . | . . . . . . . . . . . Special Melee Weapon 1 | . . . . . 1 . . . . . Unidentified Prototypes 12 | . . . 3 . . . 1 7 . 1 Corrupted Parts 4 | . . . . 3 . . . 1 . . System Corruption 10 | . . . . 8 . . . 2 . . Parts Lost 33 | . 1 . 1 6 5 . 2 8 1 9 Power 5 | . 1 . . 1 1 . 1 . . 1 Propulsion 15 | . . . . 3 2 . . 6 1 3 Utility 5 | . . . . . 1 . 1 . . 3 Weapon 8 | . . . 1 2 1 . . 2 . 2 Highest Loss Streak 9 | . 1 . 1 7 2 . 1 2 1 9 To Critical Strikes 2 | . . . . . 2 . . . . . Average Slot Usage (%) 92 | . 86 100 93 98 80 100 97 99 94 89 Engine 5 | . 14 14 11 10 11 11 5 . . 2 Core 4 | . . . . . . . 3 8 9 6 Treads 33 | . . . 32 32 33 33 36 35 35 35 Leg 1 | . 28 28 . . . . . . . . Device 6 | . . . . . . 10 14 9 9 8 Storage 10 | . 14 14 11 11 11 11 9 9 9 9 Processor 5 | . . . 5 11 11 11 10 6 . . Protection 8 | . 1 14 11 11 5 . . 10 13 9 Energy Gun 7 | . 28 28 21 1 . . . 5 9 9 Energy Cannon 6 | . . . . 14 . . 16 10 8 8 Ballistic Gun 2 | . . . . . 6 21 1 1 . . Peak Build Rating 46 | . 7 9 24 24 44 38 45 46 40 44 Average Rating 34 | . 6 8 20 17 25 37 41 39 39 42 On Entrance 24 | 6 6 7 9 21 17 35 38 45 40 40 Naked Turns . | . . . . . . . . . . . Heaviest Build 122 | 11 29 29 95 97 106 102 116 117 122 122 Greatest Support 84 | 20 20 20 62 62 66 64 84 84 80 80 Greatest Overweight (x) 1 | . 1 1 1 1 1 1 1 1 1 1 Average Overweight (x) . | . . 1 . 1 1 1 1 1 1 1 Largest Inventory Capacity 25 | . 15 15 25 25 25 25 25 25 25 25 Average Capacity 24 | . 12 15 23 25 25 25 25 25 25 25 Most Carried 25 | . 9 13 25 24 25 25 25 25 25 25 Average Carried 23 | . 8 12 21 18 21 23 24 24 24 24 Final Capacity 25 | 8 15 15 25 25 25 25 25 25 25 25 Final Carried 25 | 6 9 13 25 19 22 25 24 25 25 19 Class Distribution -------------------- 38% | Mutant 31% | Scavenger-Mutant 30% | Commander-Mutant Dominant Class ---------------- Mutant | -10/Materials Mutant | -10/Mines Mutant | -9/Materials Scavenger-Mutant | -9/Mines Mutant | -9/Exiles Mutant | -8/Mines Mutant | -8/Materials Scavenger-Mutant | -8/Storage Commander-Mutant | -8/Recycling Commander-Mutant | -8/Scraptown Resources | -11 -10 -10 -9 -9 -9 -8 -8 -8 -8 -8 ----------- Run | Yrd Mat Min Mat Min Exi Min Mat Sto Rec Scr Matter Collected 3022 | 200 15 10 195 53 809 335 488 682 211 24 Remotely . | . . . . . . . . . . . Salvage Created 5513 | . 101 76 928 28 540 513 836 1995 357 139 Parts 323 | . 4 3 61 . 65 21 59 93 14 3 Haulers Intercepted 9 | . . . 3 . . . 1 5 . . Recyclers Shooed 4 | . . . 1 . . . . 1 2 . Parts Field Recycled . | . . . . . . . . . . . Retrieved Matter . | . . . . . . . . . . . Parts Self-Destructed . | . . . . . . . . . . . Prevented . | . . . . . . . . . . . Kills | -11 -10 -10 -9 -9 -9 -8 -8 -8 -8 -8 ------- Run | Yrd Mat Min Mat Min Exi Min Mat Sto Rec Scr Combat Hostiles Destroyed 118 | . 3 2 17 17 3 12 22 35 7 . Melee 1 | . . . . . 1 . . . . . Guns 38 | . 3 2 14 . 1 7 2 7 2 . Cannons 32 | . . . . . . . 14 13 5 . AOE 44 | . . . 3 17 1 5 5 13 . . Classes Destroyed 20 | . 1 . 8 1 2 4 1 1 2 . Worker 8 | . . . 3 . . 1 2 2 . . Builder 3 | . . . . . . . 1 2 . . Tunneler 2 | . . . . . . 1 1 . . . Hauler 9 | . . . 3 . . . 1 5 . . Recycler 6 | . . . 2 . . . . 2 2 . Mechanic 2 | . . . 1 . . . . 1 . . Operator 1 | . . . 1 . . . . . . . Turret 1 | . . . . . 1 . . . . . Watcher 1 | . . . 1 . . . . . . . Swarmer 20 | . . . 8 . . 2 6 4 . . Grunt 43 | . 3 2 6 . . 7 10 15 . . Brawler 7 | . . . . . . 1 1 3 1 1 Duelist 5 | . . . . . . 1 . 4 . . Protector 1 | . . . . . . . . 1 . . Sentry 20 | . . . 3 . . . 5 8 3 1 Demolisher 1 | . . . . . . . . . 1 . Hunter 3 | . . . . . . 1 . . . 2 Programmer 2 | . . . . . . . . . 2 . Zionite 6 | . . . . . 6 . . . . . Assembled 19 | . . . . 17 2 . . . . . Thug 1 | . . . . . . . . 1 . . Best Kill Streak 17 | . 2 2 6 17 3 3 9 16 4 . Combat Bots Only 17 | . 2 2 5 17 2 3 4 15 4 . Max Kills in Single Turn 5 | . 1 1 4 5 1 2 3 4 2 4 Gunslinging 1 | . . . 1 . . . . . . . Exploded 5 | . . . 2 5 1 2 2 3 . . Melee 1 | . . . . . 1 . . . . . Uniques/NPCs Destroyed 4 | . . . . . 4 . . . . . 8R-AWN (-9/Exiles) EX-BIN (-9/Exiles) EX-DEC (-9/Exiles) EX-HEX (-9/Exiles) Combat | -11 -10 -10 -9 -9 -9 -8 -8 -8 -8 -8 -------- Run | Yrd Mat Min Mat Min Exi Min Mat Sto Rec Scr Hostile Shots Fired 615 | . 16 19 68 54 57 41 102 139 39 80 Missed 157 | . 7 5 22 9 10 10 35 29 8 22 Damage Taken 7930 | . 185 161 465 701 996 305 699 2055 691 1672 Core 1038 | . 37 28 32 87 230 48 99 229 60 188 Absorbed by Shields 240 | . . . . . . 124 116 . . . Redirected to Shielding 72 | . . 7 7 19 . . . 20 19 . Regen/Repaired (Parts) 133 | . . . . . . . . 133 . . Core Remaining (%) 58 | 100 . 74 . . . . . . . . Volleys Fired 328 | . 12 8 42 7 56 35 59 82 18 9 Largest 2 | . 2 2 2 1 2 2 2 2 2 2 Hottest 136 | . 90 90 90 36 100 53 136 136 129 100 Shots Fired 582 | . 24 16 80 8 73 60 110 157 37 17 Gun 335 | . 24 16 77 . 65 52 18 49 18 16 Cannon 210 | . . . . 1 6 . 84 100 19 . Launcher 36 | . . . 3 7 2 8 8 8 . . Special 1 | . . . . . . . . . . 1 Kinetic 175 | . . . . . 65 52 18 40 . . Thermal 283 | . 24 16 10 1 6 . 84 105 37 . Explosive 33 | . . . 3 7 2 8 8 5 . . Electromagnetic 90 | . . . 67 . . . . 7 . 16 Robot Hit Streak 21 | . 7 10 12 3 5 8 21 18 5 15 Robot Miss Streak 6 | . 3 1 3 1 3 3 6 2 3 2 Penetration Max 2 | . . . . . 1 . 2 1 . . Secondary Targets 3 | . 1 1 1 . . . . . . . Max Gunslinging Chain 1 | . 1 1 1 . . . . . . . Shots Hit Robots 405 | . 17 13 64 5 61 34 69 105 21 16 Core Hits 291 | . 7 6 45 28 28 29 50 77 9 12 Critical Kills 14 | . . . . . 3 4 4 3 . . Critical Parts Destroyed 14 | . . . . . 7 2 5 . . . Critical Strikes 38 | . 1 1 . . 13 6 9 6 2 . Burn 6 | . 1 1 . . . . . 2 2 . Meltdown 4 | . . . . . . . 1 3 . . Destroy 25 | . . . . . 10 6 8 1 . . Sever 3 | . . . . . 3 . . . . . Melee Attacks 28 | . . . . . 22 . . 6 . . Impact . | . . . . . . . . . . . Slashing 26 | . . . . . 20 . . 6 . . Piercing . | . . . . . . . . . . . Sneak Attacks . | . . . . . . . . . . . Combat Hostiles . | . . . . . . . . . . . Follow-up Attacks . | . . . . . . . . . . . Damage Inflicted 13870 | . 379 161 1705 1212 2178 1062 2529 3734 591 319 Guns 3906 | . 201 155 988 . 728 424 287 726 295 102 Cannons 2714 | . . . . 17 . . 1112 1390 195 . Explosions 6162 | . 178 . 708 1195 513 615 1130 1606 . 217 Melee 937 | . . . . . 937 . . . . . Ramming 151 | . . 6 9 . . 23 . 12 101 . Kinetic 2031 | . . . . . 728 424 287 592 . . Thermal 4540 | . 379 155 244 17 361 . 1112 1565 490 217 Explosive 4824 | . . . 558 1195 152 615 1130 1174 . . Electromagnetic 1387 | . . . 894 . . . . 391 . 102 Impact . | . . . . . . . . . . . Slashing 937 | . . . . . 937 . . . . . Piercing . | . . . . . . . . . . . Highest Corruption 13 | . . . 3 11 13 13 . 5 8 . Average Corruption 8 | . . . 3 10 11 13 . 4 7 . Corruption Purged . | . . . . . . . . . . . Corruption Blocked . | . . . . . . . . . . . Effects 218 | . . . 17 15 73 26 . 32 55 . Message Errors 56 | . . . 5 6 18 5 . 12 10 . Matter Fused 38 | . . . 2 4 12 3 . 5 12 . Heat Flow Errors 24 | . . . 1 1 6 4 . 2 10 . Energy Discharges 31 | . . . 2 2 12 4 . 3 8 . Parts Rejected 4 | . . . . . . 2 . . 2 . Parts Fused 1 | . . . . . . . . 1 . . Data Loss (minor) 35 | . . . 4 1 14 5 . 3 8 . Data Loss (major) 9 | . . . . . 5 1 . 2 1 . Misfires 9 | . . . . 1 1 2 . 3 2 . Alerts 7 | . . . 2 . 2 . . 1 2 . Weapon Failures 4 | . . . 1 . 3 . . . . . Overload Shots . | . . . . . . . . . . . Overflow Damage 163 | . 55 . 23 . 25 . 12 17 31 . Projectiles 42 | . . . . . . . . 11 31 . Explosions 121 | . 55 . 23 . 25 . 12 6 . . Melee . | . . . . . . . . . . . Knockbacks . | . . . . . . . . . . . Impact . | . . . . . . . . . . . Kinetic . | . . . . . . . . . . . Secondary . | . . . . . . . . . . . Self-Inflicted Damage 377 | . 67 . 23 91 54 . . 38 . 104 Shots 10 | . 1 . 1 3 1 . . 2 . 2 Rammed 9 | . . . 2 . . 1 . 1 5 . Targets Rammed 10 | . . 1 2 . . 1 . 1 5 . Kicked 1 | . . 1 . . . . . . . . Crushed . | . . . . . . . . . . . Highest Temperature 325 | . 325 258 199 226 248 238 207 248 212 148 Average Temperature 67 | . 138 144 52 104 61 61 33 37 68 82 Received Heat Transfer 1768 | . 69 96 144 . . 108 270 675 63 343 Effects 1 | . . . . . 1 . . . . . Interference 1 | . . . . . 1 . . . . . Siege Activations . | . . . . . . . . . . . Robots Corrupted . | . . . . . . . . . . . Combat Hostiles . | . . . . . . . . . . . Parts Fried 5 | . . . 3 . . . . 2 . . Impact Corruptions . | . . . . . . . . . . . Robots Melted 4 | . . . . . . . 1 3 . . Combat Hostiles 3 | . . . . . . . 1 2 . . Parts Melted 19 | . 3 1 1 . . . 3 11 . . Heat Transferred 8205 | . 683 495 498 37 320 . 1961 2862 999 350 Parts Sabotaged . | . . . . . . . . . . . Parts Stolen . | . . . . . . . . . . . Parts Stripped . | . . . . . . . . . . . Power Chain Reactions 6 | . . . 3 . . . . 1 . 2 Alert | -11 -10 -10 -9 -9 -9 -8 -8 -8 -8 -8 ------- Run | Yrd Mat Min Mat Min Exi Min Mat Sto Rec Scr Peak Influence 784 | . 113 108 444 143 . 205 633 784 279 . Initial 258 | . . 43 41 134 . . 78 258 131 . Average 261 | . 45 105 238 110 . 66 354 488 135 . Maximum Alert Level 3 | . . . 2 . . 1 2 3 1 . Low Security (%) 48 | . 100 100 28 100 . 95 30 . 74 . Level 1 27 | . . . 64 . . 4 28 32 25 . Level 2 21 | . . . 6 . . . 41 56 . . Level 3 2 | . . . . . . . . 10 . . Level 4 . | . . . . . . . . . . . Level 5 . | . . . . . . . . . . . High Security . | . . . . . . . . . . . Max Security . | . . . . . . . . . . . Squads Dispatched 11 | . . 1 1 . . . 3 6 . . Investigation . | . . . . . . . . . . . Extermination . | . . . . . . . . . . . Reinforcement 2 | . . . 1 . . . 1 . . . Assault 5 | . . 1 . . . . 1 3 . . Garrison 4 | . . . . . . . 1 3 . . Intercept . | . . . . . . . . . . . Searches Triggered . | . . . . . . . . . . . Construction Impeded . | . . . . . . . . . . . Haulers Reinforced . | . . . . . . . . . . . Active Scanning Responses . | . . . . . . . . . . . Cargo Convoy Interrupts . | . . . . . . . . . . . Stealth | -11 -10 -10 -9 -9 -9 -8 -8 -8 -8 -8 --------- Run | Yrd Mat Min Mat Min Exi Min Mat Sto Rec Scr Distress Signals 10 | . . . 4 . . . 4 2 . . Communications Jammed . | . . . . . . . . . . . Distress Signals . | . . . . . . . . . . . Times Spotted 201 | . 3 2 34 19 27 13 34 53 10 6 Peak Tracking Total 19 | . 2 2 6 19 9 3 6 8 5 7 Tactical Retreats 15 | . . . 2 1 10 2 . . . . Traps | -11 -10 -10 -9 -9 -9 -8 -8 -8 -8 -8 ------- Run | Yrd Mat Min Mat Min Exi Min Mat Sto Rec Scr Traps Triggered 2 | . . . . . . . . 2 . . Indirectly . | . . . . . . . . . . . Trap Hack Attempts . | . . . . . . . . . . . Triggered . | . . . . . . . . . . . Disarmed 6 | . . . . . . . . 6 . . Reprogrammed . | . . . . . . . . . . . Reused . | . . . . . . . . . . . Traps Extracted . | . . . . . . . . . . . Installed . | . . . . . . . . . . . Triggered . | . . . . . . . . . . . Machines | -11 -10 -10 -9 -9 -9 -8 -8 -8 -8 -8 ---------- Run | Yrd Mat Min Mat Min Exi Min Mat Sto Rec Scr Machines Disabled 26 | . 2 . 2 . 11 1 4 6 . . Max in Single Turn 2 | . 2 . 1 . 2 1 1 1 . . Garrison Access 1 | . . . . . . . 1 . . . Machines Repaired . | . . . . . . . . . . . Machines Dismantled . | . . . . . . . . . . . Machines Sabotaged . | . . . . . . . . . . . Overloaded Fab Kills . | . . . . . . . . . . . Hacking | -11 -10 -10 -9 -9 -9 -8 -8 -8 -8 -8 --------- Run | Yrd Mat Min Mat Min Exi Min Mat Sto Rec Scr Machines Accessed 30 | . 1 . 3 . 2 . 3 9 12 . Terminals 19 | . 1 . 3 . . . 3 7 5 . Fabricators . | . . . . . . . . . . . Repair Stations 2 | . . . . . . . . 2 . . Recycling Units 7 | . . . . . . . . . 7 . Scanalyzers . | . . . . . . . . . . . Garrison Access . | . . . . . . . . . . . Total Hacks 72 | . 4 . 9 . 3 . 7 25 24 . Successful 40 | . 2 . 3 . 3 . 3 15 14 . Failed 31 | . 2 . 5 . . . 4 10 10 . Catastrophic 3 | . . . 1 . . . . 2 . . Database Lockouts 1 | . . . 1 . . . . . . . Manual 57 | . 4 . 9 . 1 . 6 17 20 . Terminals 54 | . 4 . 9 . . . 7 18 16 . Fabricators . | . . . . . . . . . . . Repair Stations 7 | . . . . . . . . 7 . . Recycling Units 8 | . . . . . . . . . 8 . Scanalyzers . | . . . . . . . . . . . Garrison Access . | . . . . . . . . . . . Terminal Hacks 19 | . . . 2 . 3 . 2 7 5 . Record 2 | . . . . . 2 . . . . . Robot Analysis 1 | . . . 1 . . . . . . . Open Door 2 | . . . . . . . . 2 . . Branch Access Points 2 | . . . . . . . 2 . . . Alert Level 1 | . . . . . . . . . 1 . Unreport Threat 4 | . . . . . . . . 3 1 . Disarm Traps 1 | . . . . . . . . 1 . . Hauler Manifests 1 | . . . . . . . . . 1 . Zone Layout 4 | . . . 1 . . . . 1 2 . Derelict Proto ID Bank 1 | . . . . . 1 . . . . . Fabricator Hacks . | . . . . . . . . . . . Repair Station Hacks 5 | . . . . . . . . 5 . . Scan Component 3 | . . . . . . . . 3 . . Repair 2 | . . . . . . . . 2 . . Recycling Unit Hacks . | . . . . . . . . . . . Scanalyzer . | . . . . . . . . . . . Garrison Access Hacks . | . . . . . . . . . . . Unauthorized Hacks 16 | . 2 . 1 . . . 1 3 9 . Terminals 9 | . 2 . 1 . . . 1 3 2 . Botnet 8 | . 1 . 1 . . . 1 3 2 . Skim 1 | . 1 . . . . . . . . . Fabricators . | . . . . . . . . . . . Repair Stations . | . . . . . . . . . . . Recycling Units 7 | . . . . . . . . . 7 . Tunnel 7 | . . . . . . . . . 7 . Scanalyzers . | . . . . . . . . . . . Garrison Access . | . . . . . . . . . . . Data Cores Recovered . | . . . . . . . . . . . Used . | . . . . . . . . . . . Hacking Detections 17 | . . . 3 . . . 1 7 6 . Full Trace Events . | . . . . . . . . . . . Feedback Events . | . . . . . . . . . . . Feedback Blocked . | . . . . . . . . . . . Robot Schematics Acquired . | . . . . . . . . . . . Robots Built . | . . . . . . . . . . . Authchips . | . . . . . . . . . . . Time . | . . . . . . . . . . . Total Robot Build Rating . | . . . . . . . . . . . Part Schematics Acquired . | . . . . . . . . . . . Parts Built . | . . . . . . . . . . . Authchips . | . . . . . . . . . . . Time . | . . . . . . . . . . . Total Part Build Rating . | . . . . . . . . . . . Parts Repaired 2 | . . . . . . . . 2 . . Time 89 | . . . . . . . . 89 . . Parts Recycled . | . . . . . . . . . . . Recycled Matter . | . . . . . . . . . . . Retrieved Matter . | . . . . . . . . . . . Retrieved Components . | . . . . . . . . . . . Parts Scanalyzed . | . . . . . . . . . . . Part Schematics Acquired . | . . . . . . . . . . . Parts Damaged . | . . . . . . . . . . . Bothacking | -11 -10 -10 -9 -9 -9 -8 -8 -8 -8 -8 ------------ Run | Yrd Mat Min Mat Min Exi Min Mat Sto Rec Scr Used RIF Installer . | . . . . . . . . . . . Robots Hacked 1 | . . . . . 1 . . . . . Non-combat . | . . . . . . . . . . . Combat 1 | . . . . . 1 . . . . . Robot Hacks Applied 1 | . . . . . 1 . . . . . parse_system 1 | . . . . . 1 . . . . . Relay Couplers Released 1 | . . . . . . . 1 . . . Machine Destruction 1 | . . . . . . . 1 . . . Fabnet Peak Effective % . | . . . . . . . . . . . Robots Rewired 12 | . . . . . . . . . 12 . Allies Hacked . | . . . . . . . . . . . Hacks Repelled . | . . . . . . . . . . . Allies | -11 -10 -10 -9 -9 -9 -8 -8 -8 -8 -8 -------- Run | Yrd Mat Min Mat Min Exi Min Mat Sto Rec Scr Total Allies 15 | . . 1 . . . . . 2 12 . Largest Group 12 | . . 1 1 . . . . 2 12 12 Highest-Rated Group 168 | . . 31 31 . . . . 62 168 168 Highest-Rated Ally 31 | . . 31 31 . . . . 31 21 21 Total Orders 2 | . . . . . . . . . . 2 STAY 2 | . . . . . . . . . . 2 Ally Attacks 46 | . . . 7 . . . . 13 12 14 Total Damage 890 | . . . 62 . . . . 165 266 397 Kills 8 | . . . 3 . . . . 1 4 . Allies Corrupted . | . . . . . . . . . . . Allies Melted . | . . . . . . . . . . . Intel | -11 -10 -10 -9 -9 -9 -8 -8 -8 -8 -8 ------- Run | Yrd Mat Min Mat Min Exi Min Mat Sto Rec Scr Robot Analysis Total 1 | . . . 1 . . . . . . . Derelict Logs Recovered 1 | . . . . 1 . . . . . . Drone Launches . | . . . . . . . . . . . Drone Recoveries . | . . . . . . . . . . . Exploration | -11 -10 -10 -9 -9 -9 -8 -8 -8 -8 -8 ------------- Run | Yrd Mat Min Mat Min Exi Min Mat Sto Rec Scr Turns Passed 11677 | . 248 365 835 391 1926 609 1053 1953 1878 2419 Spaces Moved 4341 | 1 128 177 293 152 710 213 360 618 702 987 Core . | . . . . . . . . . . . Treads 4031 | . . . 289 152 710 213 360 618 702 987 Legs 310 | 1 128 177 4 . . . . . . . Wheels . | . . . . . . . . . . . Hover . | . . . . . . . . . . . Flight . | . . . . . . . . . . . Fastest Speed 120 | 120 120 190 155 235 225 230 235 235 240 240 Average Speed 232 | 120 158 190 219 239 234 236 236 240 240 240 Slowest Speed 242 | 120 190 190 235 240 240 238 242 242 240 240 Overloaded Moves . | . . . . . . . . . . . Propulsion Burnouts . | . . . . . . . . . . . Robots Hopped . | . . . . . . . . . . . Cave-ins Triggered . | . . . . . . . . . . . Exploration Rate (%) 52 | 1 26 47 32 40 85 52 41 96 97 57 Regions Visited 10 Branch Regions 7 Pre-discovered Areas 10 | . . . . 2 1 . . . 7 . Known Exits Taken 1 | . . . . . . . 1 . . . Unknown Exits Taken 9 | 1 1 1 1 1 1 1 . 1 1 . Scrap Searched 7 | . . 1 . . . 2 . . . 4 Spaces Dug 3 | . . . . . . . . 3 . . Terrain Destroyed 319 | . 25 . 21 49 28 92 58 46 . . Melee 3 | . . . . . . . . 3 . . Projectile 24 | . . . . . 6 15 1 2 . . AOE 291 | . 25 . 21 49 21 77 57 41 . . Terrain Rammed . | . . . . . . . . . . . Walls Destroyed . | . . . . . . . . . . . Machines Disabled . | . . . . . . . . . . . Actions | -11 -10 -10 -9 -9 -9 -8 -8 -8 -8 -8 --------- Run | Yrd Mat Min Mat Min Exi Min Mat Sto Rec Scr Total 5306 | . 149 189 406 172 874 262 454 926 854 1020 Wait 219 | . 2 . 21 5 39 4 9 112 21 6 Move 4331 | . 127 176 292 151 709 212 359 617 701 987 Hop . | . . . . . . . . . . . Pick Up 76 | . 4 4 20 1 20 2 1 21 . 3 Fast Attach 47 | . 2 . 8 . 1 4 7 19 5 1 Attach 41 | . 1 . 3 7 11 . 2 9 1 7 Detach 6 | . . . 1 . . 1 1 3 . . Swap 46 | . . . 3 1 3 2 8 23 3 3 Drop 80 | . 1 . 14 . 13 1 8 33 6 4 Fire 328 | . 12 8 42 7 56 35 59 82 18 9 Melee 28 | . . . . . 22 . . 6 . . Ram . | . . . . . . . . . . . Kick 1 | . . 1 . . . . . . . . Crush 9 | . . . 2 . . 1 . 1 5 . Escape Stasis . | . . . . . . . . . . . Rewire 94 | . . . . . . . . . 94 . Trap . | . . . . . . . . . . . Miscellaneous . | . . . . . . . . . . . Route ------- -11/Scrapyard -10/Materials -10/Mines -9/Materials (discovered 2 exits: *Mat / [*Min]) -9/Mines (discovered 2 exits: *Mat / *Exi) -9/Exiles (discovered 2 exits: [*Min x2]) -8/Mines -8/Materials (discovered 3 exits: [*Fac] / *Sto x2) -8/Storage (discovered 2 exits: [*Fac] / *Rec) -8/Recycling (discovered 2 exits: [*Fac] / *Scr) -8/Scraptown (discovered 1 exit: [*Fac]) History --------- Turn | Location | Event 1 | -11/Scrapyard | Discovered new exit (range 0) 1 | -11/Scrapyard | Entered Materials 196 | -10/Materials | Discovered new exit (range 16) 249 | -10/Materials | Entered Mines 310 | -10/Mines | Build established: Mutant 379 | -10/Mines | Found a damaged Exp. Sensor Array with a note attached 383 | -10/Mines | Found Prototype Device 570 | -10/Mines | Discovered new exit (range 7) 581 | -10/Mines | Met a Derelict testing a Signal Generator 614 | -10/Mines | Entered Materials 614 | -9/Materials | Accompanied by 1 ally 614 | -9/Materials | Evolved 2 slots: Propulsion x1, Utility x1 668 | -9/Materials | Central database locked down 910 | -9/Materials | Discovered new exit (range 7) 1098 | -9/Materials | Discovered new exit (range 15) 1449 | -9/Materials | Entered Mines 1450 | -9/Mines | Assembled infested the area 1455 | -9/Mines | Assisted by a Guerilla fighting off Assembled 1491 | -9/Mines | System corruption reached 10% 1499 | -9/Mines | Met a Derelict bent on vengeance 1508 | -9/Mines | Destroyed 17 combat bots 1510 | -9/Mines | Lost 7 parts (1p3n3w) 1593 | -9/Mines | Learned location of Zion (-6) 1683 | -9/Mines | A weapon hastily lodged in a ceiling crevice suddenly fell to the ground 1708 | -9/Mines | Discovered new exit (range 15) 1711 | -9/Mines | Learned location of Storage (-8) 1785 | -9/Mines | Build established: Scavenger-Mutant 1828 | -9/Mines | Deemed a non-threat by the Exiles lab entrance 1830 | -9/Mines | Discovered new exit (range 5) 1840 | -9/Mines | Entered Exiles 1877 | -9/Exiles | Discovered new exit (range 15) 1926 | -9/Exiles | Met 8R-AWN 1960 | -9/Exiles | Met EX-HEX 2029 | -9/Exiles | Met EX-BIN 2060 | -9/Exiles | Aligned with FarCom system 2063 | -9/Exiles | Given EX-Vault access code 2125 | -9/Exiles | Opened EX-Vault 2142 | -9/Exiles | Found Longsword +1 2148 | -9/Exiles | Found YOLO Cannon 2197 | -9/Exiles | Warned to stay clear of 0b10 Research branches 2281 | -9/Exiles | Met EX-DEC 2575 | -9/Exiles | Visited The Gauntlet 2672 | -9/Exiles | Build established: Mutant 2824 | -9/Exiles | Attacked by the Exiles 2934 | -9/Exiles | Core integrity fell below 50% 2974 | -9/Exiles | Destroyed 8R-AWN 2978 | -9/Exiles | Found 8R-AWN's Boregun 2988 | -9/Exiles | Found Exp. Targeting Computer 3003 | -9/Exiles | Found AS-neutralizer No. 17b 3056 | -9/Exiles | Core integrity fell below 20% 3412 | -9/Exiles | Destroyed EX-BIN 3450 | -9/Exiles | Destroyed EX-DEC 3464 | -9/Exiles | Destroyed EX-HEX 3507 | -9/Exiles | Found Prototype Processor 3745 | -9/Exiles | Discovered new exit (range 10) 3766 | -9/Exiles | Entered Mines 3803 | -8/Mines | Found DCF Scrap (13 items) 4339 | -8/Mines | Discovered new exit (range 10) 4375 | -8/Mines | Entered Materials 4375 | -8/Materials | Evolved 2 slots: Propulsion x1, Utility x1 4687 | -8/Materials | Identified exit to Storage 4810 | -8/Materials | Discovered new exit (range 14) 4966 | -8/Materials | Garrison activated, responded to threat 5428 | -8/Materials | Entered Storage 5700 | -8/Storage | Repaired Imp. Grenade Launcher 5752 | -8/Storage | Repaired Adv. Beam Cannon 5773 | -8/Storage | Build established: Scavenger-Mutant 5851 | -8/Storage | Met a pair of Derelict thieves 5883 | -8/Storage | Garrison activated, responded to threat 5949 | -8/Storage | Destroyed 15 combat bots 6228 | -8/Storage | First assault squad dispatched 6256 | -8/Storage | Core integrity fell below 50% 6374 | -8/Storage | Discovered new exit (range 16) 7054 | -8/Storage | Used back door to open Recycling access 7054 | -8/Storage | Discovered new exit (range 5) 7091 | -8/Storage | Identified Exp. Sensor Array 7381 | -8/Storage | Entered Recycling 7749 | -8/Recycling | Discovered new exit (range 13) 8360 | -8/Recycling | Build established: Commander-Mutant 9014 | -8/Recycling | Scanned before Scraplab entrance 9199 | -8/Recycling | Entered Scraplab 9221 | -8/Recycling | Discovered new exit (range 2) 9259 | -8/Recycling | Entered Scraptown 9259 | -8/Scraptown | Accompanied by 12 allies 9259 | -8/Scraptown | System corruption cleaned by C-Scrubber 9935 | -8/Scraptown | Heard Great Nut preacher, LISTEN AND RECITE! 10031 | -8/Scraptown | Discovered new exit (range 3) 10288 | -8/Scraptown | Visited Shadow of the Wyrm 10348 | -8/Scraptown | Visited The Evicted 10391 | -8/Scraptown | Visited Awakened 10480 | -8/Scraptown | Visited Cyclists 10636 | -8/Scraptown | Visited Comm Corps 11228 | -8/Scraptown | Visited Fellowship of the Rings 11393 | -8/Scraptown | Turned away by UFD registrar 11645 | -8/Scraptown | Attacked by Scraptown defenders 11673 | -8/Scraptown | Murdered 4 allies 11677 | -8/Scraptown | Core integrity fell below 20% 11678 | -8/Scraptown | Destroyed by Triborg with Siege Cannon Last Messages --------------- 11665_ Penetrated by Bolt. 11666_ Penetrated by Siege Slug. 11666_ Exp. Heat Sink destroyed. 11667_ Penetrated by Bolt. 11668_ Penetrated by Siege Slug. 11668_ Hvy. Deuterium Engine destroyed. 11668_ Hvy. EM Shotgun destroyed. 11668_ Lgt. Treads destroyed. 11670_ Penetrated by Bolt. 11670_ Penetrated by Siege Slug. 11672_ Hrd. Medium Armor Plating destroyed. 11673_ Penetrated by Bolt. 11674_ Penetrated by Siege Slug. 11674_ Hvy. EM Shotgun destroyed. 11674_ Lgt. Treads blasted off. 11675_ Penetrated by Bolt. 11675_ Bolt penetrates Wall. 11676_ Penetrated by Siege Slug. 11676_ Lgt. Treads destroyed. 11678_ Penetrated by Siege Slug. Map ----- +----------------------------------------------------+ | # #" "#???# #????????????????????? | | #" "#???# #????????????????????? | | # ### ################## ####??????????????????? | | #??????????????????? | | #??????????????????? | | #??????????????????? | | #??????????????????? | | #??????????????????? | | #### ############ #??????????????????? | | #"" ""#????# #??????????????????? | | #" " "" " "#????# j #??????????????????? | | #" ""#????# #??????????????????? | | #" " "#????# #??????????????????? | | #" "#????# #??????????????????? | | #" " "#????# ###????????????????? | | #" " ""#??#?# ""#"#??????????????? | | #"""" ""#?? ## """"#??????????????? | | #""" """"#??? ; % ""###??????????????? | | #""""""""""#????; ###????????????????? | | ############????# u #####??????????????? | | #???????????????#%%%= "??????????????? | | #???????????????# ! "??????????????? | | #???????????????# "??????????????? | | #???????????????# %/%* "??????????????? | | ################# % TT "??????????????? | | @TT = "??????????????? | | !% %[ "??????????????? | | %% % % "??????????????? | | "??????????????? | | h%* "??????????????? | | g #"??????????????? | | #???????????????? | | g j #???????????????? | | ## ############# #;######## ####???????????????? | | #??# ???????# #??????????????????? | | "#??# ?????# #??????????????????? | | ######" "#??# " ????#% #??????????????????? | | "#""" # "#??# """ #???# #??????????????????? | | "# #" "#??# """"" #???# #??????????????????? | | # ""#" "#??# ""X"? #???# #??????????????????? | | ##/###" "#??# "" ???#???# #??????????????????? | | "#??# ????????# #??????????????????? | | """""""""""#??##??????????# #??????????????????? | | ############??????????????# #??????????????????? | | ??????????????????????????# #??????????????????? | | ???????????????############ #??????????????????? | | ???????????????#""""""""""" #??????????????????? | | ???????????????#""""" """"" #??????????????????? | | ?????????#######"""" " "" #??????????????????? | | ?????????# #??????????????????? | +----------------------------------------------------+ Best States ------------- Heat Dissipation 57 Energy Generation 19 Energy Capacity 310 Matter Stores 500 Matter Capacity 500 Sight Range 16 Terrain Scan Density 10 Armor Coverage 600 Core Shielding 20 Utility Shielding 66 Evasion (%) 55 Targeting Accuracy 8 Recoil Reduction 4 Item Schematics ----------------- None Robot Schematics ------------------ None Fabricated ------------ Nothing Alien Tech Used ----------------- None Achievements -------------- None Challenges ------------ None Game ------ Seed GaussDeepMultitool Manual? 0 Play Time 00:55:12 Cumulative 436.3 hours Start 2024.09.13 @ 20:46:57 End 2024.12.10 @ 17:36:38 Sessions 5 Manual Loads 0 Difficulty Rogue Special Mode None Game No. 440 Rogue 440 Adventurer 0 Explorer 0 Win Type - Total 31 Types 16/3/6/1/2/0/3/0/0 Lore% 87 Gallery% 89 Achievement% 82 Wizard Run 0 Options --------- Layout 0 ASCII 0 Keyboard 0 Movement Arrows Keybinds 0 Fullscreen 2 Font 24/Smallcaps Map View 76x50 Zoom Use 0% Tactical HUD 1 Map Filters NONE Filters NONE Steam 1 RUN: 212be62a-5bd5-4cbd-a89a-bdbc63e3dde3